[Event "*** SCC Grand Prix: Titled Tuesday Blitz"]
[Site "Chess.com"]
[Date "2020.10.06"]
[Round "2"]
[White "verdest"]
[Black "elamier"]
[Result "1-0"]
[WhiteElo "2662"]
[BlackElo "2340"]
[TimeControl "180+1"]
[EndTime "10:14:51 PDT"]
[Termination "verdest won by resignation"]

1. d4 {[%clk 0:03:00.9]} 1... d5 {[%clk 0:02:59.5]} 2. c4 {[%clk 0:03:00.6]}
2... c6 {[%clk 0:02:59.5]} 3. Nf3 {[%clk 0:02:59.7]} 3... Nf6 {[%clk 0:02:59.4]}
4. Qb3 {[%clk 0:02:58.9]} 4... dxc4 {[%clk 0:02:58.2]} 5. Qxc4 {[%clk
0:02:58.7]} 5... Bf5 {[%clk 0:02:58.3]} 6. g3 {[%clk 0:02:57.1]} 6... e6 {[%clk
0:02:58.4]} 7. Bg2 {[%clk 0:02:56.3]} 7... Nbd7 {[%clk 0:02:58.3]} 8. O-O {[%clk
0:02:56.4]} 8... Be7 {[%clk 0:02:57.3]} 9. Qb3 {[%clk 0:02:53]} 9... Qb6 {[%clk
0:02:54.3]} 10. Nbd2 {[%clk 0:02:52.6]} 10... Qxb3 {[%clk 0:02:52.1]} 11. axb3
{[%clk 0:02:52.5]} 11... O-O {[%clk 0:02:47.5]} 12. Nc4 {[%clk 0:02:52.2]} 12...
Bc2 {[%clk 0:02:36.1]} 13. Na5 {[%clk 0:02:48.4]} 13... Rab8 {[%clk 0:02:11.4]}
14. Bf4 {[%clk 0:02:45.9]} 14... Ra8 {[%clk 0:02:09.5]} 15. Nxb7 {[%clk
0:02:37.7]} 15... Nd5 {[%clk 0:02:04.2]} 16. Bd6 {[%clk 0:02:34.7]} 16... Bxd6
{[%clk 0:02:03]} 17. Nxd6 {[%clk 0:02:35.6]} 17... Bxb3 {[%clk 0:02:03.3]} 18.
Nd2 {[%clk 0:02:30.9]} 18... Bc2 {[%clk 0:01:59.2]} 19. Rfc1 {[%clk 0:02:30.6]}
19... Bg6 {[%clk 0:01:57.8]} 20. Rxc6 {[%clk 0:02:27.4]} 20... N7f6 {[%clk
0:01:48.8]} 21. e4 {[%clk 0:02:22.3]} 21... Nb4 {[%clk 0:01:47]} 22. Rc7 {[%clk
0:02:22.1]} 22... a5 {[%clk 0:01:45.4]} 23. N2c4 {[%clk 0:02:14.7]} 23... Nc2
{[%clk 0:01:31.4]} 24. Rd1 {[%clk 0:02:09.9]} 24... Nb4 {[%clk 0:01:27.9]} 25.
d5 {[%clk 0:02:05.5]} 25... exd5 {[%clk 0:01:26.2]} 26. exd5 {[%clk 0:02:05.5]}
26... h5 {[%clk 0:01:23.2]} 27. Nb7 {[%clk 0:01:58.9]} 27... a4 {[%clk
0:01:19.6]} 28. d6 {[%clk 0:01:58]} 28... Be4 {[%clk 0:01:09.7]} 29. d7 {[%clk
0:01:55.3]} 29... Bxg2 {[%clk 0:01:01]} 30. Kxg2 {[%clk 0:01:56.2]} 1-0

[Event "*** SCC Grand Prix: Titled Tuesday Blitz"]
[Site "Chess.com"]
[Date "2020.10.06"]
[Round "2"]
[White "BJthechessgod"]
[Black "BanjoKazooieN64"]
[Result "0-1"]
[WhiteElo "2301"]
[BlackElo "2476"]
[TimeControl "180+1"]
[EndTime "10:14:55 PDT"]
[Termination "BanjoKazooieN64 won by resignation"]

1. e4 {[%clk 0:03:00.9]} 1... e5 {[%clk 0:02:59.8]} 2. Nf3 {[%clk 0:02:55.4]}
2... Nc6 {[%clk 0:02:59.2]} 3. Bc4 {[%clk 0:02:55.8]} 3... Bc5 {[%clk
0:02:58.8]} 4. c3 {[%clk 0:02:56]} 4... d6 {[%clk 0:02:58.3]} 5. d3 {[%clk
0:02:55]} 5... Qf6 {[%clk 0:02:57.8]} 6. O-O {[%clk 0:02:54.2]} 6... Qg6 {[%clk
0:02:56.6]} 7. b4 {[%clk 0:02:47.8]} 7... Bb6 {[%clk 0:02:55.9]} 8. a4 {[%clk
0:02:47.1]} 8... a6 {[%clk 0:02:52.9]} 9. Be3 {[%clk 0:02:44.5]} 9... Bxe3
{[%clk 0:02:50.3]} 10. fxe3 {[%clk 0:02:45.4]} 10... Nf6 {[%clk 0:02:50.2]} 11.
Nbd2 {[%clk 0:02:43.6]} 11... O-O {[%clk 0:02:49.2]} 12. Nh4 {[%clk 0:02:42]}
12... Qh6 {[%clk 0:02:48.6]} 13. Qe1 {[%clk 0:02:39.7]} 13... Ng4 {[%clk
0:02:44.7]} 14. Rf3 {[%clk 0:02:27.9]} 14... g5 {[%clk 0:02:40.4]} 15. h3 {[%clk
0:02:12.9]} 15... gxh4 {[%clk 0:02:31.2]} 16. hxg4 {[%clk 0:02:10.7]} 16... Bxg4
{[%clk 0:02:31.4]} 17. Rf1 {[%clk 0:02:02.2]} 17... Kh8 {[%clk 0:02:27.5]} 18.
Qf2 {[%clk 0:01:58.6]} 18... f5 {[%clk 0:02:17.8]} 19. exf5 {[%clk 0:01:37.5]}
19... Rxf5 {[%clk 0:02:16]} 20. Qe1 {[%clk 0:01:37.8]} 20... Raf8 {[%clk
0:02:12.1]} 21. Rxf5 {[%clk 0:01:34.8]} 21... Rxf5 {[%clk 0:02:13]} 22. e4
{[%clk 0:01:34.7]} 22... Rg5 {[%clk 0:02:11.9]} 23. Kh1 {[%clk 0:01:30]} 23...
h3 {[%clk 0:02:11.9]} 24. g3 {[%clk 0:01:30.2]} 24... h2 {[%clk 0:02:07.5]} 25.
Qf2 {[%clk 0:01:27.1]} 25... Bh3 {[%clk 0:01:52.3]} 26. Qxh2 {[%clk 0:01:21]}
26... Rh5 {[%clk 0:01:50.2]} 27. Qf2 {[%clk 0:01:08.1]} 27... Bg4+ {[%clk
0:01:47.7]} 28. Kg2 {[%clk 0:01:05.7]} 28... Rh2+ {[%clk 0:01:47.7]} 29. Kf1
{[%clk 0:01:06.4]} 29... Rxf2+ {[%clk 0:01:42.2]} 30. Kxf2 {[%clk 0:01:07.3]}
30... Qxd2+ {[%clk 0:01:42.3]} 0-1

[Event "*** SCC Grand Prix: Titled Tuesday Blitz"]
[Site "Chess.com"]
[Date "2020.10.06"]
[Round "2"]
[White "Konavets"]
[Black "Swarnapuri"]
[Result "1-0"]
[WhiteElo "3006"]
[BlackElo "2605"]
[TimeControl "180+1"]
[EndTime "10:14:56 PDT"]
[Termination "Konavets won on time"]

1. d4 {[%clk 0:03:00.9]} 1... Nc6 {[%clk 0:03:00.8]} 2. Nf3 {[%clk 0:03:00.3]}
2... d5 {[%clk 0:03:00.9]} 3. Bf4 {[%clk 0:02:59.1]} 3... Bg4 {[%clk 0:03:01.4]}
4. e3 {[%clk 0:02:59.5]} 4... e6 {[%clk 0:03:01.8]} 5. Be2 {[%clk 0:02:59.8]}
5... Bd6 {[%clk 0:03:02.3]} 6. Bg3 {[%clk 0:03:00.3]} 6... Nf6 {[%clk
0:03:02.8]} 7. c4 {[%clk 0:03:00.2]} 7... O-O {[%clk 0:03:02.9]} 8. Nc3 {[%clk
0:03:00.2]} 8... dxc4 {[%clk 0:02:59.4]} 9. Bxc4 {[%clk 0:02:59.2]} 9... e5
{[%clk 0:02:53.5]} 10. d5 {[%clk 0:02:59.5]} 10... Ne7 {[%clk 0:02:50.8]} 11. h3
{[%clk 0:02:58.1]} 11... Bxf3 {[%clk 0:02:39.1]} 12. gxf3 {[%clk 0:02:58.7]}
12... Nf5 {[%clk 0:02:38.3]} 13. Bh2 {[%clk 0:02:57]} 13... a6 {[%clk 0:02:33]}
14. Bd3 {[%clk 0:02:55.4]} 14... Qd7 {[%clk 0:02:31.8]} 15. Qe2 {[%clk
0:02:52.1]} 15... b5 {[%clk 0:02:17]} 16. O-O-O {[%clk 0:02:47.9]} 16... Rfb8
{[%clk 0:02:04.3]} 17. Rhg1 {[%clk 0:02:47.1]} 17... g6 {[%clk 0:01:57.5]} 18.
Rg5 {[%clk 0:02:43.2]} 18... Ne7 {[%clk 0:01:46.6]} 19. Bxe5 {[%clk 0:02:39.9]}
19... Bxe5 {[%clk 0:01:27]} 20. Rxe5 {[%clk 0:02:40.8]} 20... b4 {[%clk
0:01:17.9]} 21. Ne4 {[%clk 0:02:40.3]} 21... Nfxd5 {[%clk 0:01:11.1]} 22. Bc4
{[%clk 0:02:40.2]} 22... Qc6 {[%clk 0:01:01.2]} 23. Qc2 {[%clk 0:02:40.3]} 23...
Rd8 {[%clk 0:00:50.7]} 24. Bxd5 {[%clk 0:02:37.3]} 1-0

[Event "*** SCC Grand Prix: Titled Tuesday Blitz"]
[Site "Chess.com"]
[Date "2020.10.06"]
[Round "2"]
[White "FMJoseHerrera"]
[Black "BocharovD"]
[Result "0-1"]
[WhiteElo "2553"]
[BlackElo "2814"]
[TimeControl "180+1"]
[EndTime "10:14:58 PDT"]
[Termination "BocharovD won by resignation"]

1. Nf3 {[%clk 0:03:00.9]} 1... c5 {[%clk 0:02:59.3]} 2. g3 {[%clk 0:03:00.6]}
2... g6 {[%clk 0:02:59.2]} 3. Bg2 {[%clk 0:03:01]} 3... Bg7 {[%clk 0:02:59.7]}
4. d3 {[%clk 0:03:01.6]} 4... Nc6 {[%clk 0:02:58.9]} 5. Nc3 {[%clk 0:03:02.5]}
5... d6 {[%clk 0:02:55.6]} 6. h4 {[%clk 0:03:02.2]} 6... h6 {[%clk 0:02:55.6]}
7. e4 {[%clk 0:03:01.6]} 7... e5 {[%clk 0:02:53.8]} 8. Be3 {[%clk 0:03:00.9]}
8... Nge7 {[%clk 0:02:53.6]} 9. Qd2 {[%clk 0:02:56.7]} 9... Be6 {[%clk
0:02:53.4]} 10. O-O {[%clk 0:02:55.4]} 10... Qd7 {[%clk 0:02:52.8]} 11. Rfe1
{[%clk 0:02:48]} 11... Rd8 {[%clk 0:02:47.7]} 12. Rad1 {[%clk 0:02:45.6]} 12...
b6 {[%clk 0:02:47.4]} 13. Qc1 {[%clk 0:02:44.5]} 13... Bh3 {[%clk 0:02:40.2]}
14. Bh1 {[%clk 0:02:44]} 14... Bg4 {[%clk 0:02:39.4]} 15. Ne2 {[%clk 0:02:41.1]}
15... d5 {[%clk 0:02:34.8]} 16. exd5 {[%clk 0:02:38.6]} 16... Nxd5 {[%clk
0:02:35.2]} 17. Nh2 {[%clk 0:02:38.7]} 17... Nxe3 {[%clk 0:02:29.6]} 18. Qxe3
{[%clk 0:02:37]} 18... Be6 {[%clk 0:02:29.6]} 19. c3 {[%clk 0:02:15.7]} 19...
O-O {[%clk 0:02:27.5]} 20. b3 {[%clk 0:01:56.8]} 20... Rfe8 {[%clk 0:02:22.4]}
21. Nc1 {[%clk 0:01:34]} 21... Ne7 {[%clk 0:02:19.3]} 22. Nf3 {[%clk 0:01:29.3]}
22... Nd5 {[%clk 0:02:18.7]} 23. Qd2 {[%clk 0:01:20.9]} 23... Bg4 {[%clk
0:02:11.4]} 24. Qc2 {[%clk 0:01:13.1]} 24... Nxc3 {[%clk 0:02:05.8]} 25. Qxc3
{[%clk 0:01:08.3]} 25... e4 {[%clk 0:02:03]} 26. d4 {[%clk 0:00:57.4]} 26...
exf3 {[%clk 0:02:00.3]} 27. Rxe8+ {[%clk 0:00:58.3]} 27... Rxe8 {[%clk
0:01:59.5]} 28. Bxf3 {[%clk 0:00:59.2]} 28... Bxd4 {[%clk 0:01:59.1]} 29. Bxg4
{[%clk 0:00:56.2]} 29... Qxg4 {[%clk 0:01:58.1]} 30. Qd2 {[%clk 0:00:56.1]}
30... Qxg3+ {[%clk 0:01:55.6]} 0-1

[Event "*** SCC Grand Prix: Titled Tuesday Blitz"]
[Site "Chess.com"]
[Date "2020.10.06"]
[Round "2"]
[White "MrTattaglia"]
[Black "FloMaster111"]
[Result "1-0"]
[WhiteElo "2875"]
[BlackElo "2570"]
[TimeControl "180+1"]
[EndTime "10:15:01 PDT"]
[Termination "MrTattaglia won by resignation"]

1. Nf3 {[%clk 0:03:00.9]} 1... Nf6 {[%clk 0:02:59.6]} 2. e3 {[%clk 0:02:59.5]}
2... d5 {[%clk 0:02:56]} 3. d4 {[%clk 0:02:58.7]} 3... c5 {[%clk 0:02:51.5]} 4.
Be2 {[%clk 0:02:57.4]} 4... e6 {[%clk 0:02:50.8]} 5. O-O {[%clk 0:02:57.2]} 5...
Nc6 {[%clk 0:02:50]} 6. b3 {[%clk 0:02:57.6]} 6... cxd4 {[%clk 0:02:49.2]} 7.
exd4 {[%clk 0:02:55.7]} 7... Bd6 {[%clk 0:02:45.7]} 8. c4 {[%clk 0:02:54.8]}
8... dxc4 {[%clk 0:02:40.6]} 9. bxc4 {[%clk 0:02:54.2]} 9... O-O {[%clk
0:02:38.6]} 10. Bb2 {[%clk 0:02:53.9]} 10... b6 {[%clk 0:02:36.4]} 11. Nbd2
{[%clk 0:02:53.3]} 11... Bb7 {[%clk 0:02:35]} 12. Re1 {[%clk 0:02:52.9]} 12...
Rc8 {[%clk 0:02:33.6]} 13. Rc1 {[%clk 0:02:52.5]} 13... Na5 {[%clk 0:02:23.5]}
14. Bd3 {[%clk 0:02:51.7]} 14... Re8 {[%clk 0:02:19.4]} 15. h3 {[%clk
0:02:47.6]} 15... Qc7 {[%clk 0:01:56]} 16. d5 {[%clk 0:02:41.5]} 16... e5 {[%clk
0:01:33]} 17. Nh4 {[%clk 0:02:36.9]} 17... g6 {[%clk 0:01:26.7]} 18. Qf3 {[%clk
0:02:35.3]} 18... Qe7 {[%clk 0:01:16.7]} 19. g3 {[%clk 0:02:33.4]} 19... b5
{[%clk 0:01:07.8]} 20. c5 {[%clk 0:02:23.2]} 20... Rxc5 {[%clk 0:00:41.1]} 21.
Rxc5 {[%clk 0:02:22.1]} 21... Bxc5 {[%clk 0:00:42]} 22. Rxe5 {[%clk 0:02:21.7]}
22... Qd8 {[%clk 0:00:39.1]} 23. Qxf6 {[%clk 0:02:16.4]} 23... Be7 {[%clk
0:00:21.5]} 24. Rxe7 {[%clk 0:02:15.2]} 1-0

[Event "*** SCC Grand Prix: Titled Tuesday Blitz"]
[Site "Chess.com"]
[Date "2020.10.06"]
[Round "2"]
[White "r31415"]
[Black "JonahWillow"]
[Result "0-1"]
[WhiteElo "2475"]
[BlackElo "2707"]
[TimeControl "180+1"]
[EndTime "10:15:03 PDT"]
[Termination "JonahWillow won by checkmate"]

1. e4 {[%clk 0:03:00.9]} 1... c5 {[%clk 0:03:00.2]} 2. Nf3 {[%clk 0:03:00.7]}
2... Nc6 {[%clk 0:03:00.8]} 3. d4 {[%clk 0:03:01.3]} 3... cxd4 {[%clk
0:03:01.7]} 4. Nxd4 {[%clk 0:03:01.8]} 4... g6 {[%clk 0:03:02.5]} 5. Nc3 {[%clk
0:03:00.9]} 5... Bg7 {[%clk 0:03:02.5]} 6. Nde2 {[%clk 0:03:01.4]} 6... Nf6
{[%clk 0:03:01.2]} 7. h3 {[%clk 0:03:01.8]} 7... O-O {[%clk 0:03:00.5]} 8. g4
{[%clk 0:03:02.1]} 8... d6 {[%clk 0:03:00.2]} 9. Bg2 {[%clk 0:03:02.6]} 9... Be6
{[%clk 0:02:59.4]} 10. Be3 {[%clk 0:03:03]} 10... Qa5 {[%clk 0:02:59.7]} 11. Qd2
{[%clk 0:03:02.6]} 11... Rac8 {[%clk 0:02:58.9]} 12. O-O {[%clk 0:03:00.5]}
12... b5 {[%clk 0:02:56.1]} 13. a3 {[%clk 0:02:50.2]} 13... Ne5 {[%clk
0:02:53.3]} 14. b3 {[%clk 0:02:49.7]} 14... Rfd8 {[%clk 0:02:38.8]} 15. Rac1
{[%clk 0:02:42.7]} 15... a6 {[%clk 0:02:32.7]} 16. f4 {[%clk 0:02:39.8]} 16...
Nc6 {[%clk 0:02:30.5]} 17. f5 {[%clk 0:02:35.3]} 17... Bd7 {[%clk 0:02:30.2]}
18. Qd1 {[%clk 0:02:13.6]} 18... b4 {[%clk 0:02:13.3]} 19. axb4 {[%clk
0:02:08.1]} 19... Nxb4 {[%clk 0:02:14.2]} 20. Nd5 {[%clk 0:01:40.6]} 20... Nfxd5
{[%clk 0:02:10.5]} 21. exd5 {[%clk 0:01:41.5]} 21... Na2 {[%clk 0:02:05.2]} 22.
Rb1 {[%clk 0:01:38]} 22... Nc3 {[%clk 0:02:03.9]} 23. Nxc3 {[%clk 0:01:36.8]}
23... Qxc3 {[%clk 0:02:04.8]} 24. Bg5 {[%clk 0:01:29.3]} 24... Bd4+ {[%clk
0:01:37.9]} 25. Kh1 {[%clk 0:01:26.5]} 25... f6 {[%clk 0:01:26.2]} 26. Bc1
{[%clk 0:01:22.7]} 26... Be5 {[%clk 0:01:22.1]} 27. Rf2 {[%clk 0:01:16.1]} 27...
Qg3 {[%clk 0:01:20.8]} 28. Qf1 {[%clk 0:01:11.5]} 28... Qh2# {[%clk 0:01:20.5]}
0-1

[Event "*** SCC Grand Prix: Titled Tuesday Blitz"]
[Site "Chess.com"]
[Date "2020.10.06"]
[Round "2"]
[White "Anton_Demchenko"]
[Black "ThePatrick27"]
[Result "1-0"]
[WhiteElo "2839"]
[BlackElo "2560"]
[TimeControl "180+1"]
[EndTime "10:15:04 PDT"]
[Termination "Anton_Demchenko won by resignation"]

1. e4 {[%clk 0:03:00.9]} 1... e5 {[%clk 0:02:56]} 2. Nf3 {[%clk 0:03:00]} 2...
Nc6 {[%clk 0:02:56.2]} 3. Bc4 {[%clk 0:03:00.7]} 3... Bc5 {[%clk 0:02:55.9]} 4.
d3 {[%clk 0:03:01.2]} 4... Nf6 {[%clk 0:02:55.6]} 5. Bg5 {[%clk 0:03:01.8]} 5...
d6 {[%clk 0:02:55.1]} 6. c3 {[%clk 0:03:01.1]} 6... a6 {[%clk 0:02:54.1]} 7.
Nbd2 {[%clk 0:03:00.3]} 7... h6 {[%clk 0:02:54]} 8. Bh4 {[%clk 0:02:58.9]} 8...
Ba7 {[%clk 0:02:53.9]} 9. a4 {[%clk 0:02:57.7]} 9... O-O {[%clk 0:02:37.1]} 10.
h3 {[%clk 0:02:55.9]} 10... Be6 {[%clk 0:02:37.1]} 11. g4 {[%clk 0:02:50.4]}
11... Bxc4 {[%clk 0:02:34.6]} 12. dxc4 {[%clk 0:02:48]} 12... Nb8 {[%clk
0:02:09.3]} 13. g5 {[%clk 0:02:37.8]} 13... hxg5 {[%clk 0:02:04.5]} 14. Bxg5
{[%clk 0:02:30.6]} 14... Nbd7 {[%clk 0:02:04]} 15. Qe2 {[%clk 0:02:26.6]} 15...
Qc8 {[%clk 0:01:59.1]} 16. Rg1 {[%clk 0:02:23.6]} 16... Re8 {[%clk 0:01:36.1]}
17. Nh4 {[%clk 0:02:15.5]} 17... Nh7 {[%clk 0:01:33.5]} 18. Bh6 {[%clk
0:02:11.8]} 18... g6 {[%clk 0:00:51.2]} 19. Nxg6 {[%clk 0:02:11.1]} 19... fxg6
{[%clk 0:00:51.2]} 20. Rxg6+ {[%clk 0:02:07]} 20... Kf7 {[%clk 0:00:30.8]} 21.
Rg7+ {[%clk 0:02:04.9]} 21... Ke6 {[%clk 0:00:24.2]} 22. Qg4+ {[%clk 0:02:03.3]}
1-0

[Event "*** SCC Grand Prix: Titled Tuesday Blitz"]
[Site "Chess.com"]
[Date "2020.10.06"]
[Round "2"]
[White "SaqoChess_Twitch"]
[Black "Kaponov"]
[Result "1-0"]
[WhiteElo "2408"]
[BlackElo "2182"]
[TimeControl "180+1"]
[EndTime "10:15:04 PDT"]
[Termination "SaqoChess_Twitch won on time"]

1. d4 {[%clk 0:03:00.9]} 1... Nf6 {[%clk 0:02:59.4]} 2. c4 {[%clk 0:03:01.5]}
2... e6 {[%clk 0:02:59.2]} 3. Nc3 {[%clk 0:03:02.1]} 3... Bb4 {[%clk 0:02:58.4]}
4. a3 {[%clk 0:03:02.8]} 4... Bxc3+ {[%clk 0:02:56.3]} 5. bxc3 {[%clk
0:03:03.7]} 5... O-O {[%clk 0:02:51.8]} 6. e3 {[%clk 0:03:04.1]} 6... d5 {[%clk
0:02:51.3]} 7. Bd3 {[%clk 0:03:04.7]} 7... c5 {[%clk 0:02:50.3]} 8. cxd5 {[%clk
0:03:04.3]} 8... exd5 {[%clk 0:02:50.3]} 9. Ne2 {[%clk 0:03:04.8]} 9... b6
{[%clk 0:02:49]} 10. O-O {[%clk 0:03:04.8]} 10... Ba6 {[%clk 0:02:48.8]} 11. f3
{[%clk 0:03:03.8]} 11... Bxd3 {[%clk 0:02:47.9]} 12. Qxd3 {[%clk 0:03:04.7]}
12... Nc6 {[%clk 0:02:47.3]} 13. g4 {[%clk 0:03:03.8]} 13... Qd7 {[%clk
0:01:58.7]} 14. Ng3 {[%clk 0:03:00.8]} 14... Ne8 {[%clk 0:01:37.8]} 15. h4
{[%clk 0:02:57.7]} 15... Nc7 {[%clk 0:01:37]} 16. Ra2 {[%clk 0:02:56.5]} 16...
Rfe8 {[%clk 0:01:36]} 17. Rg2 {[%clk 0:02:55.6]} 17... Rad8 {[%clk 0:01:35.5]}
18. h5 {[%clk 0:02:55.6]} 18... Na5 {[%clk 0:01:30]} 19. h6 {[%clk 0:02:54.9]}
19... g6 {[%clk 0:01:25.7]} 20. Nh5 {[%clk 0:02:54.2]} 20... Re6 {[%clk
0:01:15.5]} 21. f4 {[%clk 0:02:51.5]} 21... Qb5 {[%clk 0:01:15.1]} 22. Qd1
{[%clk 0:02:48.1]} 22... cxd4 {[%clk 0:00:49.4]} 23. f5 {[%clk 0:02:43.1]} 23...
Rc6 {[%clk 0:00:46.5]} 24. fxg6 {[%clk 0:02:42.8]} 24... fxg6 {[%clk 0:00:45.7]}
25. Qf3 {[%clk 0:02:41]} 25... Qxf1+ {[%clk 0:00:16.3]} 26. Qxf1 {[%clk
0:02:41.9]} 26... Rf8 {[%clk 0:00:14.1]} 27. Rf2 {[%clk 0:02:41.1]} 27... Rxf2
{[%clk 0:00:03.7]} 28. Qxf2 {[%clk 0:02:42]} 28... Ne8 {[%clk 0:00:01.6]} 29.
exd4 {[%clk 0:02:39.6]} 1-0

[Event "*** SCC Grand Prix: Titled Tuesday Blitz"]
[Site "Chess.com"]
[Date "2020.10.06"]
[Round "2"]
[White "IMJonathanCarlstedt"]
[Black "Alexander_Moskalenko"]
[Result "0-1"]
[WhiteElo "2535"]
[BlackElo "2803"]
[TimeControl "180+1"]
[EndTime "10:15:06 PDT"]
[Termination "Alexander_Moskalenko won by resignation"]

1. d4 {[%clk 0:03:00.9]} 1... d5 {[%clk 0:02:59.6]} 2. Bf4 {[%clk 0:03:00.9]}
2... c5 {[%clk 0:02:59]} 3. e3 {[%clk 0:03:01.2]} 3... Nf6 {[%clk 0:02:58.7]} 4.
c3 {[%clk 0:03:01.3]} 4... Qb6 {[%clk 0:02:57.9]} 5. Qb3 {[%clk 0:03:00.1]} 5...
c4 {[%clk 0:02:57.8]} 6. Qxb6 {[%clk 0:02:59.7]} 6... axb6 {[%clk 0:02:58.7]} 7.
a3 {[%clk 0:03:00.1]} 7... Nc6 {[%clk 0:02:59]} 8. Nd2 {[%clk 0:02:59.6]} 8...
b5 {[%clk 0:02:59.7]} 9. h3 {[%clk 0:02:56.6]} 9... b4 {[%clk 0:02:58.1]} 10.
cxb4 {[%clk 0:02:55.5]} 10... Nxb4 {[%clk 0:02:59]} 11. Rc1 {[%clk 0:02:55.6]}
11... Nc6 {[%clk 0:02:59]} 12. Ngf3 {[%clk 0:02:49.5]} 12... b5 {[%clk
0:02:55.7]} 13. g4 {[%clk 0:02:45.6]} 13... e6 {[%clk 0:02:52]} 14. Bg2 {[%clk
0:02:45.4]} 14... Nd7 {[%clk 0:02:51.2]} 15. O-O {[%clk 0:02:44.6]} 15... Nb6
{[%clk 0:02:51.6]} 16. e4 {[%clk 0:02:43.6]} 16... f6 {[%clk 0:02:50.2]} 17.
exd5 {[%clk 0:02:43.2]} 17... exd5 {[%clk 0:02:51]} 18. Nb1 {[%clk 0:02:33.4]}
18... Na4 {[%clk 0:02:48.9]} 19. Nc3 {[%clk 0:02:29.2]} 19... Nxc3 {[%clk
0:02:47.4]} 20. Rxc3 {[%clk 0:02:30.1]} 20... Be6 {[%clk 0:02:40.3]} 21. Re3
{[%clk 0:02:14.6]} 21... Kd7 {[%clk 0:02:39]} 22. Rfe1 {[%clk 0:02:12.9]} 22...
Bf7 {[%clk 0:02:37.7]} 23. h4 {[%clk 0:02:04.6]} 23... Bd6 {[%clk 0:02:35.2]}
24. Bxd6 {[%clk 0:01:58.9]} 24... Kxd6 {[%clk 0:02:36.1]} 25. g5 {[%clk
0:01:55.1]} 25... Rhe8 {[%clk 0:02:29]} 26. Rd1 {[%clk 0:01:51.6]} 26... Bh5
{[%clk 0:02:10.7]} 27. Rd2 {[%clk 0:01:50.8]} 27... Rxe3 {[%clk 0:02:08]} 28.
fxe3 {[%clk 0:01:51.7]} 28... Bxf3 {[%clk 0:02:08.3]} 29. Bxf3 {[%clk
0:01:51.4]} 29... f5 {[%clk 0:02:08.9]} 30. Kf2 {[%clk 0:01:46]} 30... b4 {[%clk
0:02:07.6]} 31. axb4 {[%clk 0:01:39.5]} 31... Nxb4 {[%clk 0:02:08.5]} 32. Kg3
{[%clk 0:01:36.6]} 32... Ra1 {[%clk 0:02:04.9]} 33. Kf4 {[%clk 0:01:35.7]} 33...
g6 {[%clk 0:02:04.3]} 34. Be2 {[%clk 0:01:33.9]} 34... Rg1 {[%clk 0:01:57.1]}
35. Kf3 {[%clk 0:01:32.1]} 35... Rg4 {[%clk 0:01:55.6]} 36. Rd1 {[%clk
0:01:29.3]} 36... Rxh4 {[%clk 0:01:55.1]} 37. Ra1 {[%clk 0:01:29.8]} 37... Rh3+
{[%clk 0:01:46.1]} 38. Kf2 {[%clk 0:01:29]} 38... Nc2 {[%clk 0:01:46.3]} 39.
Ra6+ {[%clk 0:01:26.9]} 39... Kd7 {[%clk 0:01:45.3]} 40. Ra7+ {[%clk 0:01:27.8]}
40... Kd8 {[%clk 0:01:45.5]} 41. Rxh7 {[%clk 0:01:24.8]} 41... Rxh7 {[%clk
0:01:44.5]} 0-1

[Event "*** SCC Grand Prix: Titled Tuesday Blitz"]
[Site "Chess.com"]
[Date "2020.10.06"]
[Round "2"]
[White "RaunakSadhwani2005"]
[Black "TheMagnet"]
[Result "1-0"]
[WhiteElo "2916"]
[BlackElo "2580"]
[TimeControl "180+1"]
[EndTime "10:15:10 PDT"]
[Termination "RaunakSadhwani2005 won by resignation"]

1. c4 {[%clk 0:03:00.9]} 1... Nf6 {[%clk 0:02:57.9]} 2. Nc3 {[%clk 0:03:00.7]}
2... g6 {[%clk 0:02:58.5]} 3. g3 {[%clk 0:02:58.8]} 3... Bg7 {[%clk 0:02:58.6]}
4. Bg2 {[%clk 0:02:59.2]} 4... O-O {[%clk 0:02:59.3]} 5. Nf3 {[%clk 0:02:58.9]}
5... d6 {[%clk 0:02:59]} 6. O-O {[%clk 0:02:57]} 6... c5 {[%clk 0:02:59.3]} 7.
d4 {[%clk 0:02:56.5]} 7... Nc6 {[%clk 0:02:59.8]} 8. d5 {[%clk 0:02:55.5]} 8...
Na5 {[%clk 0:03:00]} 9. Nd2 {[%clk 0:02:55.7]} 9... a6 {[%clk 0:02:58.8]} 10.
Rb1 {[%clk 0:02:54]} 10... Rb8 {[%clk 0:02:58]} 11. Qc2 {[%clk 0:02:52.8]} 11...
b5 {[%clk 0:02:53]} 12. b3 {[%clk 0:02:53.2]} 12... e6 {[%clk 0:02:50.9]} 13.
Bb2 {[%clk 0:02:34.7]} 13... exd5 {[%clk 0:02:46.5]} 14. Nxd5 {[%clk 0:02:29]}
14... Nxd5 {[%clk 0:02:41.2]} 15. Bxd5 {[%clk 0:02:22.5]} 15... Bb7 {[%clk
0:02:21.5]} 16. Bxg7 {[%clk 0:02:16.1]} 16... Kxg7 {[%clk 0:02:19.5]} 17. Bxb7
{[%clk 0:02:13]} 17... Rxb7 {[%clk 0:02:17.9]} 18. Ne4 {[%clk 0:02:13.1]} 18...
Nc6 {[%clk 0:02:02.8]} 19. Rfd1 {[%clk 0:02:08]} 19... Rd7 {[%clk 0:02:00.4]}
20. Qd2 {[%clk 0:01:53.7]} 20... Qe7 {[%clk 0:01:51.4]} 21. Nxc5 {[%clk
0:01:50.8]} 21... Ra7 {[%clk 0:01:41.2]} 22. Nd3 {[%clk 0:01:49]} 22... bxc4
{[%clk 0:01:37]} 23. bxc4 {[%clk 0:01:49.9]} 23... Rc8 {[%clk 0:01:34.6]} 24.
Nf4 {[%clk 0:01:44.7]} 24... Ne5 {[%clk 0:01:31.6]} 25. Nd5 {[%clk 0:01:32.8]}
25... Qd8 {[%clk 0:01:11.4]} 26. Qd4 {[%clk 0:01:26]} 1-0